[Event "2. Itzehoer Schach Open"]
[Site "Itzehoe, Germany"]
[Date "2023.04.29"]
[Round "2.9"]
[White "Knuedel, Torben"]
[Black "Retzlaff, Wolfgang"]
[Result "1-0"]
[TimeControl "90 min / 40 Züge + 30 min + 30 Sek pro Zug"]
[WhiteElo "2250"]
[BlackElo "1704"]

1. e4 {[%clk 01:25:20]} {[%emt 00:05:39]} c6 {[%clk 01:30:43]} {[%emt
00:00:18]} 2. d4 {[%clk 01:25:23]} {[%emt 00:00:26]} d5 {[%clk 01:31:07]}
{[%emt 00:00:06]} 3. f3 {[%clk 01:25:49]} {[%emt 00:00:04]} g6 {[%clk
01:30:29]} {[%emt 00:01:09]} 4. Nc3 {[%clk 01:22:16]} {[%emt 00:04:04]} Bg7
{[%clk 01:30:28]} {[%emt 00:00:30]} 5. Be3 {[%clk 01:22:28]} {[%emt 00:00:18]}
dxe4 {[%clk 01:26:47]} {[%emt 00:04:11]} 6. fxe4 {[%clk 01:22:52]} {[%emt
00:00:05]} Nf6 {[%clk 01:26:36]} {[%emt 00:00:42]} 7. Nf3 {[%clk 01:22:18]}
{[%emt 00:01:04]} Bg4 {[%clk 01:26:40]} {[%emt 00:00:25]} 8. Bc4 {[%clk
01:19:46]} {[%emt 00:03:03]} e6 {[%clk 01:25:28]} {[%emt 00:01:42]} 9. h3
{[%clk 01:17:47]} {[%emt 00:02:28]} Bxf3 {[%clk 01:25:39]} {[%emt 00:00:19]} 10.
Qxf3 {[%clk 01:18:06]} {[%emt 00:00:11]} Qc7 {[%clk 01:24:47]} {[%emt
00:01:22]} 11. O-O {[%clk 01:16:43]} {[%emt 00:01:54]} O-O {[%clk 01:24:53]}
{[%emt 00:00:24]} 12. Rad1 {[%clk 01:10:29]} {[%emt 00:06:43]} Nbd7 {[%clk
01:23:25]} {[%emt 00:01:58]} 13. Bb3 {[%clk 01:07:27]} {[%emt 00:03:33]} b5
{[%clk 01:22:02]} {[%emt 00:01:53]} 14. e5 {[%clk 00:59:09]} {[%emt 00:08:48]}
Nd5 {[%clk 01:22:12]} {[%emt 00:00:20]} 15. Nxd5 {[%clk 00:58:01]} {[%emt
00:01:38]} cxd5 {[%clk 01:22:04]} {[%emt 00:00:37]} 16. Bg5 {[%clk 00:57:35]}
{[%emt 00:00:55]} Rae8 {[%clk 01:20:16]} {[%emt 00:02:19]} 17. Qe2 {[%clk
00:57:03]} {[%emt 00:01:02]} Qb6 {[%clk 01:19:55]} {[%emt 00:00:52]} 18. a4
{[%clk 00:56:38]} {[%emt 00:00:54]} Bxe5 {[%clk 01:16:32]} {[%emt 00:03:53]} 19.
Be3 {[%clk 00:52:35]} {[%emt 00:04:33]} Bg7 {[%clk 01:15:55]} {[%emt 00:01:06]}
20. axb5 {[%clk 00:51:24]} {[%emt 00:01:43]} Nf6 {[%clk 01:12:39]} {[%emt
00:03:46]} 21. Ra1 {[%clk 00:47:49]} {[%emt 00:04:05]} Ne4 {[%clk 01:10:17]}
{[%emt 00:02:52]} 22. Ra6 {[%clk 00:43:24]} {[%emt 00:04:55]} Ng3 {[%clk
01:08:50]} {[%emt 00:01:56]} 23. Qd3 {[%clk 00:42:55]} {[%emt 00:01:00]} Qb7
{[%clk 01:08:18]} {[%emt 00:01:02]} 24. c3 {[%clk 00:38:48]} {[%emt 00:04:37]}
Nf5 {[%clk 01:06:12]} {[%emt 00:02:36]} 25. Bf4 {[%clk 00:36:14]} {[%emt
00:03:03]} Bh6 {[%clk 01:05:56]} {[%emt 00:00:45]} 26. Bxh6 {[%clk 00:35:48]}
{[%emt 00:00:57]} Nxh6 {[%clk 01:06:05]} {[%emt 00:00:21]} 27. Rfa1 {[%clk
00:35:29]} {[%emt 00:00:49]} Rb8 {[%clk 01:05:43]} {[%emt 00:00:53]} 28. R6a5
{[%clk 00:31:23]} {[%emt 00:04:36]} Qb6 {[%clk 01:05:00]} {[%emt 00:01:12]} 29.
Bc2 {[%clk 00:28:20]} {[%emt 00:03:34]} Nf5 {[%clk 01:04:44]} {[%emt 00:00:45]}
30. Qe2 {[%clk 00:24:30]} {[%emt 00:04:20]} Rfc8 {[%clk 01:01:36]} {[%emt
00:03:38]} 31. Bxf5 {[%clk 00:22:53]} {[%emt 00:02:07]} gxf5 {[%clk 01:00:20]}
{[%emt 00:01:47]} 32. Qe3 {[%clk 00:19:46]} {[%emt 00:03:36]} Qd8 {[%clk
01:00:19]} {[%emt 00:00:31]} 33. Qg3+ {[%clk 00:18:33]} {[%emt 00:01:43]} Kf8
{[%clk 01:00:26]} {[%emt 00:00:22]} 34. Rxa7 {[%clk 00:17:23]} {[%emt
00:01:43]} Rxb5 {[%clk 00:49:36]} {[%emt 00:11:19]} 35. Qe5 {[%clk 00:15:32]}
{[%emt 00:02:20]} Kg8 {[%clk 00:49:57]} {[%emt 00:00:10]} 36. R1a3 {[%clk
00:14:53]} {[%emt 00:01:09]} Qe8 {[%clk 00:43:45]} {[%emt 00:06:42]} 37. c4
{[%clk 00:14:51]} {[%emt 00:00:32]} 1-0

[Event "2. Itzehoer Schach Open"]
[Site "Itzehoe, Germany"]
[Date "2023.04.29"]
[Round "2.34"]
[White "Wolff, Ole"]
[Black "Knudsen, Finn Luca"]
[Result "1-0"]
[TimeControl "90 min / 40 Züge + 30 min + 30 Sek pro Zug"]
[WhiteElo "1097"]
[BlackElo "929"]

1. e4 {[%clk 01:30:57]} {[%emt 00:00:02]} e5 {[%clk 01:30:50]} {[%emt
00:00:11]} 2. Nf3 {[%clk 01:31:11]} {[%emt 00:00:16]} Nc6 {[%clk 01:30:48]}
{[%emt 00:00:32]} 3. Bb5 {[%clk 01:31:35]} {[%emt 00:00:06]} Bc5 {[%clk
01:29:48]} {[%emt 00:01:30]} 4. O-O {[%clk 01:31:51]} {[%emt 00:00:13]} a6
{[%clk 01:29:16]} {[%emt 00:01:04]} 5. Ba4 {[%clk 01:32:13]} {[%emt 00:00:07]}
Nf6 {[%clk 01:28:36]} {[%emt 00:01:10]} 6. Re1 {[%clk 01:32:32]} {[%emt
00:00:12]} O-O {[%clk 01:27:42]} {[%emt 00:01:24]} 7. c3 {[%clk 01:31:16]}
{[%emt 00:01:45]} d5 {[%clk 01:25:33]} {[%emt 00:02:39]} 8. exd5 {[%clk
01:30:45]} {[%emt 00:01:02]} Qxd5 {[%clk 01:24:21]} {[%emt 00:01:42]} 9. Bxc6
{[%clk 01:30:46]} {[%emt 00:00:29]} Qxc6 {[%clk 01:22:58]} {[%emt 00:01:53]} 10.
Nxe5 {[%clk 01:30:54]} {[%emt 00:00:21]} Qd6 {[%clk 01:22:27]} {[%emt
00:01:02]} 11. d4 {[%clk 01:30:54]} {[%emt 00:00:30]} Bb6 {[%clk 01:21:24]}
{[%emt 00:01:33]} 12. Nd2 {[%clk 01:26:44]} {[%emt 00:04:39]} c5 {[%clk
01:19:42]} {[%emt 00:02:13]} 13. Ndc4 {[%clk 01:26:33]} {[%emt 00:00:41]} Qc7
{[%clk 01:18:56]} {[%emt 00:01:16]} 14. Nxb6 {[%clk 01:24:43]} {[%emt
00:02:19]} Qxb6 {[%clk 01:19:04]} {[%emt 00:00:21]} 15. d5 {[%clk 01:21:50]}
{[%emt 00:03:23]} Rd8 {[%clk 01:17:59]} {[%emt 00:01:36]} 16. c4 {[%clk
01:21:59]} {[%emt 00:00:21]} Qc7 {[%clk 01:13:44]} {[%emt 00:04:45]} 17. b3
{[%clk 01:16:54]} {[%emt 00:05:34]} Nd7 {[%clk 01:11:48]} {[%emt 00:02:27]} 18.
d6 {[%clk 01:13:45]} {[%emt 00:03:39]} Qa5 {[%clk 01:10:59]} {[%emt 00:01:19]}
19. Bg5 {[%clk 01:08:37]} {[%emt 00:05:37]} Nxe5 {[%clk 01:07:37]} {[%emt
00:03:53]} 20. Bxd8 {[%clk 01:08:44]} {[%emt 00:00:23]} Qxd8 {[%clk 01:07:38]}
{[%emt 00:00:29]} 21. Rxe5 {[%clk 01:09:01]} {[%emt 00:00:14]} Bd7 {[%clk
01:07:33]} {[%emt 00:00:35]} 22. Rxc5 {[%clk 01:08:46]} {[%emt 00:00:45]} b6
{[%clk 01:07:20]} {[%emt 00:00:43]} 23. Rd5 {[%clk 01:08:28]} {[%emt 00:00:48]}
Qf6 {[%clk 01:06:41]} {[%emt 00:01:09]} 24. Rc1 {[%clk 01:08:16]} {[%emt
00:00:42]} Bc6 {[%clk 01:05:04]} {[%emt 00:02:08]} 25. Rd3 {[%clk 01:07:03]}
{[%emt 00:01:43]} Qg6 {[%clk 01:02:07]} {[%emt 00:03:28]} 26. f3 {[%clk
01:06:59]} {[%emt 00:00:33]} Bd7 {[%clk 00:59:55]} {[%emt 00:02:42]} 27. b4
{[%clk 01:07:13]} {[%emt 00:00:16]} Bh3 {[%clk 00:59:52]} {[%emt 00:00:32]} 28.
g3 {[%clk 01:07:21]} {[%emt 00:00:22]} h5 {[%clk 00:59:08]} {[%emt 00:01:14]}
29. d7 {[%clk 01:05:37]} {[%emt 00:02:14]} Rd8 {[%clk 00:59:02]} {[%emt
00:00:37]} 30. c5 {[%clk 01:05:47]} {[%emt 00:00:20]} bxc5 {[%clk 00:56:14]}
{[%emt 00:03:17]} 31. bxc5 {[%clk 01:06:13]} {[%emt 00:00:03]} Qe6 {[%clk
00:56:14]} {[%emt 00:00:30]} 32. c6 {[%clk 01:05:34]} {[%emt 00:01:09]} Qxa2
{[%clk 00:55:44]} {[%emt 00:01:00]} 33. Rd2 {[%clk 01:05:51]} {[%emt 00:00:13]}
Qa5 {[%clk 00:53:08]} {[%emt 00:03:08]} 34. c7 {[%clk 01:04:21]} {[%emt
00:02:00]} Qb6+ {[%clk 00:53:05]} {[%emt 00:00:32]} 35. Kh1 {[%clk 01:03:24]}
{[%emt 00:01:27]} Rxd7 {[%clk 00:52:04]} {[%emt 00:01:31]} 36. c8=Q+ {[%clk
01:03:40]} {[%emt 00:00:14]} Kh7 {[%clk 00:52:07]} {[%emt 00:00:27]} 37. Qxd7
{[%clk 01:03:54]} {[%emt 00:00:15]} Bxd7 {[%clk 00:52:23]} 38. Rxd7 {[%clk
01:04:08]} {[%emt 00:00:32]} Qf6 {[%clk 00:51:47]} {[%emt 00:01:06]} 39. Rcc7
{[%clk 01:03:39]} {[%emt 00:00:59]} Kg6 {[%clk 00:51:36]} {[%emt 00:00:40]} 40.
Rd6 {[%clk 01:03:58]} {[%emt 00:00:12]} Qxd6 {[%clk 00:51:59]} {[%emt
00:00:07]} 41. Qxd6+ {[%clk 01:04:21]} {[%emt 00:00:07]} Kh7 {[%clk 00:52:12]}
{[%emt 00:00:18]} 42. Qd3+ {[%clk 01:04:48]} {[%emt 00:00:02]} g6 {[%clk
00:52:32]} {[%emt 00:00:10]} 43. Rxf7+ {[%clk 01:05:11]} {[%emt 00:00:07]} Kh6
{[%clk 00:52:48]} {[%emt 00:00:15]} 44. Qe3+ {[%clk 01:05:22]} {[%emt
00:00:18]} g5 {[%clk 00:53:02]} {[%emt 00:00:17]} 45. Rf6+ {[%clk 01:05:51]}
{[%emt 00:00:02]} Kh7 {[%clk 00:53:12]} {[%emt 00:00:19]} 46. Qxg5 {[%clk
01:06:18]} {[%emt 00:00:03]} a5 {[%clk 00:52:48]} {[%emt 00:00:55]} 47. Rh6#
{[%clk 01:06:12]} {[%emt 00:00:05]} 1-0

[Event "2. Itzehoer Schach Open"]
[Site "Itzehoe, Germany"]
[Date "2023.04.29"]
[Round "2.11"]
[White "Axt, Christian"]
[Black "Neumann, Frank"]
[Result "0-1"]
[TimeControl "90 min / 40 Züge + 30 min + 30 Sek pro Zug"]
[WhiteElo "1728"]
[BlackElo "2030"]

1. e4 {[%clk 01:30:55]} {[%emt 00:00:05]} c5 {[%clk 01:30:56]} {[%emt
00:00:05]} 2. Nc3 {[%clk 01:31:19]} {[%emt 00:00:05]} d6 {[%clk 01:31:17]}
{[%emt 00:00:10]} 3. f4 {[%clk 01:31:34]} {[%emt 00:00:14]} g6 {[%clk
01:29:04]} {[%emt 00:02:43]} 4. Nf3 {[%clk 01:31:22]} {[%emt 00:00:42]} Bg7
{[%clk 01:28:52]} {[%emt 00:00:43]} 5. Bc4 {[%clk 01:28:35]} {[%emt 00:03:17]}
Nf6 {[%clk 01:27:37]} {[%emt 00:01:44]} 6. O-O {[%clk 01:28:19]} {[%emt
00:00:47]} O-O {[%clk 01:26:45]} {[%emt 00:01:21]} 7. d4 {[%clk 01:25:01]}
{[%emt 00:03:48]} cxd4 {[%clk 01:26:57]} {[%emt 00:00:18]} 8. Nxd4 {[%clk
01:25:11]} {[%emt 00:00:20]} a6 {[%clk 01:27:18]} {[%emt 00:00:09]} 9. Be3
{[%clk 01:23:36]} {[%emt 00:02:05]} Ng4 {[%clk 01:26:54]} {[%emt 00:00:54]} 10.
Qd3 {[%clk 01:16:23]} {[%emt 00:07:43]} Nxe3 {[%clk 01:23:31]} {[%emt
00:03:52]} 11. Qxe3 {[%clk 01:16:47]} {[%emt 00:00:07]} Qb6 {[%clk 01:21:50]}
{[%emt 00:02:10]} 12. Nf5 {[%clk 01:13:40]} {[%emt 00:03:37]} Qxe3+ {[%clk
01:21:22]} {[%emt 00:00:59]} 13. Nxe3 {[%clk 01:14:06]} {[%emt 00:00:04]} b5
{[%clk 01:15:29]} {[%emt 00:06:22]} 14. Bb3 {[%clk 01:10:23]} {[%emt 00:04:13]}
Nc6 {[%clk 01:04:37]} {[%emt 00:11:23]} 15. Rad1 {[%clk 01:08:05]} {[%emt
00:02:47]} Bb7 {[%clk 00:56:53]} {[%emt 00:08:15]} 16. Kh1 {[%clk 01:06:33]}
{[%emt 00:02:02]} Bxc3 {[%clk 00:54:39]} {[%emt 00:02:44]} 17. bxc3 {[%clk
01:06:52]} {[%emt 00:00:11]} Na5 {[%clk 00:54:55]} {[%emt 00:00:14]} 18. Nd5
{[%clk 01:02:01]} {[%emt 00:05:21]} Bxd5 {[%clk 00:52:55]} {[%emt 00:02:30]} 19.
Bxd5 {[%clk 01:00:01]} {[%emt 00:02:29]} Rac8 {[%clk 00:53:15]} {[%emt
00:00:11]} 20. Rf3 {[%clk 00:59:13]} {[%emt 00:01:17]} Rc5 {[%clk 00:42:35]}
{[%emt 00:11:10]} 21. f5 {[%clk 00:53:13]} {[%emt 00:06:30]} Kg7 {[%clk
00:37:55]} {[%emt 00:05:11]} 22. g4 {[%clk 00:49:27]} {[%emt 00:04:15]} f6
{[%clk 00:32:40]} {[%emt 00:05:45]} 23. h4 {[%clk 00:48:02]} {[%emt 00:01:55]}
Nc4 {[%clk 00:28:19]} {[%emt 00:04:51]} 24. g5 {[%clk 00:44:19]} {[%emt
00:04:13]} Ne5 {[%clk 00:25:22]} {[%emt 00:03:28]} 25. Rg3 {[%clk 00:43:04]}
{[%emt 00:01:44]} fxg5 {[%clk 00:23:35]} {[%emt 00:02:18]} 26. Rxg5 {[%clk
00:40:29]} {[%emt 00:03:04]} Rxc3 {[%clk 00:23:04]} {[%emt 00:01:02]} 27. fxg6
{[%clk 00:38:32]} {[%emt 00:02:27]} hxg6 {[%clk 00:21:12]} {[%emt 00:02:22]} 28.
Be6 {[%clk 00:37:08]} {[%emt 00:01:53]} Rf2 {[%clk 00:14:20]} {[%emt 00:07:22]}
29. Kg1 {[%clk 00:32:31]} {[%emt 00:05:08]} Rcxc2 {[%clk 00:13:57]} {[%emt
00:00:53]} 30. Ra1 {[%clk 00:30:00]} {[%emt 00:03:35]} Rce2 0-1

[Event "2. Itzehoer Schach Open"]
[Site "Itzehoe, Germany"]
[Date "2023.04.29"]
[Round "2.30"]
[White "Junge, Julia Marie"]
[Black "Bartels, Jens"]
[Result "1/2-1/2"]
[TimeControl "90 min / 40 Züge + 30 min + 30 Sek pro Zug"]
[WhiteElo "1367"]
[BlackElo "1589"]

1. e4 {[%clk 01:30:54]} {[%emt 00:00:06]} e5 {[%clk 01:30:14]} {[%emt
00:00:46]} 2. Nf3 {[%clk 01:30:47]} {[%emt 00:00:38]} d6 {[%clk 01:29:20]}
{[%emt 00:01:23]} 3. d4 {[%clk 01:29:26]} {[%emt 00:01:52]} exd4 {[%clk
01:26:44]} {[%emt 00:03:02]} 4. Nxd4 {[%clk 01:28:50]} {[%emt 00:01:09]} Be7
{[%clk 01:23:17]} {[%emt 00:03:56]} 5. Nc3 {[%clk 01:26:57]} {[%emt 00:02:25]}
Nd7 {[%clk 01:20:51]} {[%emt 00:02:54]} 6. Bf4 {[%clk 01:25:46]} {[%emt
00:01:43]} Ne5 {[%clk 01:16:39]} {[%emt 00:04:41]} 7. Bxe5 {[%clk 01:24:40]}
{[%emt 00:01:37]} dxe5 {[%clk 01:16:36]} {[%emt 00:00:32]} 8. Bb5+ {[%clk
01:23:51]} {[%emt 00:01:20]} Bd7 {[%clk 01:14:14]} {[%emt 00:02:52]} 9. Bxd7+
{[%clk 01:21:46]} {[%emt 00:02:34]} Qxd7 {[%clk 01:14:19]} {[%emt 00:00:25]} 10.
Nf3 {[%clk 01:21:25]} {[%emt 00:00:52]} Qxd1+ {[%clk 01:10:52]} {[%emt
00:03:56]} 11. Rxd1 {[%clk 01:21:24]} {[%emt 00:00:31]} Bd6 {[%clk 01:10:56]}
{[%emt 00:00:25]} 12. Nb5 {[%clk 01:21:16]} {[%emt 00:00:39]} Ke7 {[%clk
01:09:47]} {[%emt 00:01:37]} 13. a3 {[%clk 01:15:14]} {[%emt 00:06:34]} Nf6
{[%clk 01:08:17]} {[%emt 00:01:58]} 14. Nd2 {[%clk 01:12:38]} {[%emt 00:03:08]}
a6 {[%clk 01:07:17]} {[%emt 00:01:30]} 15. Nxd6 {[%clk 01:12:27]} {[%emt
00:00:41]} cxd6 {[%clk 01:07:26]} {[%emt 00:00:20]} 16. f3 {[%clk 01:12:10]}
{[%emt 00:00:47]} Rac8 {[%clk 01:06:42]} {[%emt 00:01:11]} 17. c4 {[%clk
01:10:33]} {[%emt 00:02:10]} Nd7 {[%clk 01:01:02]} {[%emt 00:06:09]} 18. b4
{[%clk 01:08:16]} {[%emt 00:02:48]} Nb6 {[%clk 00:55:45]} {[%emt 00:05:47]} 19.
Rc1 {[%clk 01:07:25]} {[%emt 00:01:22]} Rc7 {[%clk 00:51:45]} {[%emt 00:04:30]}
20. Ke2 {[%clk 01:05:35]} {[%emt 00:02:20]} Rhc8 {[%clk 00:51:42]} {[%emt
00:00:32]} 21. Kd3 {[%clk 01:02:27]} {[%emt 00:03:39]} Na4 {[%clk 00:49:06]}
{[%emt 00:03:05]} 22. Rc2 {[%clk 01:00:02]} {[%emt 00:02:55]} b5 {[%clk
00:45:06]} {[%emt 00:04:29]} 23. Rhc1 {[%clk 01:00:02]} {[%emt 00:00:32]} bxc4+
{[%clk 00:41:24]} {[%emt 00:04:08]} 24. Ke3 {[%clk 00:53:02]} {[%emt 00:07:33]}
c3 {[%clk 00:38:12]} {[%emt 00:03:42]} 25. Nb1 {[%clk 00:52:05]} {[%emt
00:01:27]} Ke6 {[%clk 00:30:30]} {[%emt 00:08:12]} 26. Kd3 {[%clk 00:50:52]}
{[%emt 00:01:43]} Nb2+ {[%clk 00:29:03]} {[%emt 00:01:56]} 27. Ke3 {[%clk
00:49:37]} {[%emt 00:01:46]} f5 {[%clk 00:24:08]} {[%emt 00:05:23]} 28. exf5+
{[%clk 00:49:01]} {[%emt 00:01:08]} Kxf5 {[%clk 00:24:20]} {[%emt 00:00:17]} 29.
g4+ {[%clk 00:49:13]} {[%emt 00:00:18]} Ke6 {[%clk 00:24:25]} {[%emt 00:00:24]}
30. Nxc3 {[%clk 00:46:56]} {[%emt 00:02:48]} d5 {[%clk 00:21:23]} {[%emt
00:03:31]} 31. Kd2 {[%clk 00:44:33]} {[%emt 00:02:54]} Nc4+ {[%clk 00:13:14]}
{[%emt 00:08:38]} 32. Kd3 {[%clk 00:41:08]} {[%emt 00:03:57]} Nxa3 {[%clk
00:10:40]} {[%emt 00:03:03]} 33. Ra2 {[%clk 00:40:30]} {[%emt 00:01:08]} a5
{[%clk 00:09:27]} {[%emt 00:01:43]} 34. bxa5 {[%clk 00:38:10]} {[%emt
00:02:51]} d4 {[%clk 00:07:23]} {[%emt 00:02:33]} 35. Rxa3 {[%clk 00:38:00]}
{[%emt 00:00:41]} dxc3 {[%clk 00:06:20]} {[%emt 00:01:32]} 36. Rcxc3 {[%clk
00:37:53]} {[%emt 00:00:37]} Rxc3+ {[%clk 00:06:31]} {[%emt 00:00:19]} 37. Rxc3
{[%clk 00:38:19]} {[%emt 00:00:04]} Ra8 {[%clk 00:06:29]} {[%emt 00:00:32]} 38.
Rc7 {[%clk 00:37:09]} {[%emt 00:01:38]} Rxa5 {[%clk 00:04:06]} {[%emt
00:02:54]} 39. Rxg7 {[%clk 00:37:27]} {[%emt 00:00:13]} Ra3+ {[%clk 00:04:05]}
{[%emt 00:00:32]} 40. Ke4 {[%clk 00:37:36]} {[%emt 00:00:21]} Ra4+ {[%clk
00:04:01]} {[%emt 00:00:34]} 41. Ke3 {[%clk 00:37:55]} {[%emt 00:00:10]} h5
{[%clk 00:00:41]} {[%emt 00:03:50]} 42. Rg6+ {[%clk 00:37:26]} {[%emt
00:01:00]} Kf7 {[%clk 00:30:15]} {[%emt 00:00:55]} 43. Rg5 {[%clk 01:07:30]}
{[%emt 00:00:27]} hxg4 {[%clk 00:30:14]} {[%emt 00:00:31]} 44. Rxg4 {[%clk
01:06:30]} {[%emt 00:01:31]} Ra2 {[%clk 00:28:39]} {[%emt 00:02:04]} 45. Ke4
{[%clk 01:05:21]} {[%emt 00:01:39]} Rxh2 {[%emt 00:01:46]} 46. Kxe5 {[%emt
00:00:10]} Re2+ {[%clk 00:25:09]} {[%emt 00:02:02]} 47. Re4 {[%clk 01:04:50]}
{[%emt 00:01:02]} Ra2 {[%clk 00:25:12]} {[%emt 00:00:27]} 48. f4 {[%clk
01:04:27]} {[%emt 00:00:54]} Ra5+ {[%clk 00:25:01]} {[%emt 00:00:41]} 49. Kd4
{[%clk 01:04:35]} {[%emt 00:00:22]} Kf6 {[%clk 00:25:04]} {[%emt 00:00:26]} 50.
Re5 {[%clk 01:04:23]} {[%emt 00:00:43]} Ra3 {[%clk 00:24:11]} {[%emt 00:01:22]}
51. Rb5 {[%clk 01:01:41]} {[%emt 00:03:13]} 1/2-1/2

[Event "2. Itzehoer Schach Open"]
[Site "Itzehoe, Germany"]
[Date "2023.04.29"]
[Round "2.18"]
[White "Stiller, Maximilian"]
[Black "Harten, Jan"]
[Result "1/2-1/2"]
[TimeControl "90 min / 40 Züge + 30 min + 30 Sek pro Zug"]
[WhiteElo "1657"]
[BlackElo "1819"]

1. Nf3 {[%emt 00:04:43]} d5 {[%clk 01:30:21]} {[%emt 00:00:37]} 2. d4 {[%clk
01:26:38]} {[%emt 00:00:11]} Nf6 {[%clk 01:30:36]} {[%emt 00:00:15]} 3. e3
{[%clk 01:27:00]} {[%emt 00:00:08]} g6 {[%clk 01:30:48]} {[%emt 00:00:19]} 4.
c4 {[%clk 01:24:05]} {[%emt 00:03:24]} c6 {[%clk 01:30:05]} {[%emt 00:01:14]} 5.
Nc3 {[%clk 01:24:06]} {[%emt 00:00:28]} Bg7 {[%clk 01:30:17]} {[%emt 00:00:17]}
6. cxd5 {[%clk 01:23:36]} {[%emt 00:01:01]} cxd5 {[%clk 01:29:20]} {[%emt
00:01:27]} 7. Qb3 {[%clk 01:23:09]} {[%emt 00:00:57]} O-O {[%clk 01:28:40]}
{[%emt 00:01:10]} 8. Be2 {[%clk 01:21:53]} {[%emt 00:01:45]} b6 {[%clk
01:25:17]} {[%emt 00:03:53]} 9. Ne5 {[%clk 01:19:16]} {[%emt 00:03:07]} Bb7
{[%clk 01:24:22]} {[%emt 00:01:26]} 10. O-O {[%clk 01:18:09]} {[%emt 00:01:37]}
e6 {[%clk 01:22:08]} {[%emt 00:02:43]} 11. Bd2 {[%clk 01:16:19]} {[%emt
00:02:20]} Nc6 {[%clk 01:09:32]} {[%emt 00:13:07]} 12. Nxc6 {[%clk 01:15:06]}
{[%emt 00:01:43]} Bxc6 {[%clk 01:09:49]} {[%emt 00:00:13]} 13. Rac1 {[%clk
01:15:21]} {[%emt 00:00:14]} Qd7 {[%clk 01:06:46]} {[%emt 00:03:34]} 14. f3
{[%clk 01:10:17]} {[%emt 00:05:33]} Rfc8 {[%clk 01:04:46]} {[%emt 00:02:29]} 15.
Ba6 {[%clk 01:09:21]} {[%emt 00:01:27]} Bb7 {[%clk 01:03:26]} {[%emt 00:01:50]}
16. Bd3 {[%clk 01:06:39]} {[%emt 00:03:12]} Bh6 {[%clk 00:58:22]} {[%emt
00:05:33]} 17. Rc2 {[%clk 01:06:04]} {[%emt 00:01:07]} Ne8 {[%clk 00:55:38]}
{[%emt 00:03:10]} 18. Rfc1 {[%clk 01:02:55]} {[%emt 00:03:42]} Nd6 {[%clk
00:52:56]} {[%emt 00:03:12]} 19. Nb5 {[%clk 01:02:50]} {[%emt 00:00:35]} Bc6
{[%clk 00:42:23]} {[%emt 00:11:04]} 20. Nxd6 {[%clk 01:01:50]} {[%emt
00:01:30]} Qxd6 {[%clk 00:42:40]} {[%emt 00:00:12]} 21. Ba6 {[%clk 00:59:29]}
{[%emt 00:02:51]} Rc7 {[%clk 00:42:24]} {[%emt 00:00:47]} 22. Bb4 {[%clk
00:56:43]} {[%emt 00:03:15]} Qd7 {[%clk 00:38:51]} {[%emt 00:04:02]} 23. Kf2
{[%clk 00:52:02]} {[%emt 00:05:12]} Rb8 {[%clk 00:29:08]} {[%emt 00:10:14]} 24.
Rc3 {[%clk 00:50:16]} {[%emt 00:02:16]} e5 {[%clk 00:27:51]} {[%emt 00:01:47]}
25. Bb5 {[%clk 00:39:37]} {[%emt 00:11:09]} exd4 {[%clk 00:27:04]} {[%emt
00:01:17]} 26. Rxc6 {[%clk 00:35:00]} {[%emt 00:05:07]} Bxe3+ {[%clk 00:25:56]}
{[%emt 00:01:38]} 27. Ke2 {[%clk 00:22:42]} {[%emt 00:12:47]} Bxc1 {[%clk
00:22:00]} {[%emt 00:04:26]} 28. Rxg6+ {[%clk 00:21:55]} {[%emt 00:01:17]} hxg6
{[%clk 00:22:23]} {[%emt 00:00:07]} 29. Bxd7 {[%clk 00:22:19]} {[%emt
00:00:07]} Rxd7 {[%clk 00:22:28]} {[%emt 00:00:25]} 1/2-1/2